Cogmind - Beta 16 @@@ ROGUE MODE // 2025.11.25 @ 22:09:48 Player: LJ Result: Destroyed by S-27 Virus with Autogun Performance ------------- Evolutions (5) 2500 Regions Visited (5) 1000 Robots Destroyed (19) 95 Value Destroyed (731) 731 Prototype IDs (0) 0 Alien Tech Used (0) 0 Bonus (700) 700 TOTAL SCORE: 5026 Bonus ------- Entered Garrisons 200 Used RIF Installer 500 Cogmind --------- Core Integrity 0/1000 Matter 79/300 Energy 98/100 System Corruption 0% Temperature Cool (0) Movement Core (50) Location -5/Garrison Parts ------- > --- POWER (3) -------- (None) > --- PROPULSION (5) --- (None) > --- UTILITY (4) ------ (None) > --- WEAPON (5) ------- (None) > --- INVENTORY (5) ---- Ion Engine Ion Engine Aluminum Leg Aluminum Leg Improved Datajack Peak State ------------ > --- POWER ------------ Ion Engine Light Ion Engine Improved Deuterium Engine > --- PROPULSION ------- Flexi-carbon Leg Flexi-carbon Leg Flexi-carbon Leg Flexi-carbon Leg Flexi-carbon Leg > --- UTILITY ---------- Large Storage Unit Improved Light Armor Plating Shield Generator High-powered Tractor Beam > --- WEAPON ----------- Wave Gun Light EM Pulse Cannon Shotgun Proton Missile Launcher Heavy Rocket Launcher > --- INVENTORY -------- Ion Engine Ion Engine Aluminum Leg Aluminum Leg Small Storage Unit Improved Datajack [Rating: 58] Favorites ----------- Power Ion Engine Engine Ion Engine Propulsion Aluminum Leg Leg Aluminum Leg Utility Small Storage Unit Device High-powered Tractor Beam Storage Small Storage Unit Protection Improved Light Armor Plating Weapon Shotgun Energy Gun Wave Gun Energy Cannon Light EM Pulse Cannon Ballistic Gun Shotgun Launcher Heavy Rocket Launcher Special Melee Weapon Improved Datajack Build | -11 -10 -10 -7 -5 -5 ------- Run | Yrd Mat Sub Rec Fac Gar Slots Evolved 10 | . . . . 10 . Power 2 | . . . . 2 . Propulsion 3 | . . . . 3 . Utility 2 | . . . . 2 . Weapon 3 | . . . . 3 . Parts Attached 30 | 6 1 3 3 14 3 Power 4 | 1 . . . 3 . Engine 4 | 1 . . . 3 . Core . | . . . . . . Reactor . | . . . . . . Propulsion 10 | 2 . 2 . 5 1 Treads . | . . . . . . Leg 10 | 2 . 2 . 5 1 Wheel . | . . . . . . Hover . | . . . . . . Flight . | . . . . . . Utility 5 | 1 . . 2 2 . Device 2 | . . . 1 1 . Storage 2 | 1 . . 1 . . Processor . | . . . . . . Hackware . | . . . . . . Protection 1 | . . . . 1 . Artifact . | . . . . . . Weapon 11 | 2 1 1 1 4 2 Energy Gun 2 | . . . . 1 1 Energy Cannon 1 | . . . 1 . . Ballistic Gun 5 | 2 1 1 . . 1 Ballistic Cannon . | . . . . . . Launcher 2 | . . . . 2 . Special Weapon . | . . . . . . Impact Weapon . | . . . . . . Slashing Weapon . | . . . . . . Piercing Weapon . | . . . . . . Special Melee Weapon 1 | . . . . 1 . Unidentified Prototypes . | . . . . . . Parts Lost 23 | . . 2 . 1 20 Power 3 | . . . . . 3 Propulsion 8 | . . 2 . . 6 Utility 5 | . . . . . 5 Weapon 7 | . . . . 1 6 Highest Loss Streak 14 | . . 1 . 1 14 To Critical Strikes 1 | . . . . . 1 Average Backups 7 | 2 7 7 8 8 5 Power 2 | . 3 3 3 2 2 Propulsion 1 | 1 1 1 . 1 2 Utility . | . . . 1 1 . Weapon 2 | . 2 3 3 1 . Tool/Special . | . . . . . . Unused Backups 9 | . 6 . 2 . 1 Power 2 | . 1 . . . 1 Propulsion 4 | . 4 . . . . Utility 1 | . . . 1 . . Weapon 2 | . 1 . 1 . . Tool/Special . | . . . . . . Average Slot Usage (%) 81 | . 85 80 85 74 77 Engine 13 | . 14 14 14 13 11 Leg 26 | . 28 23 28 26 26 Device 4 | . . . 7 7 3 Storage 12 | . 14 14 14 5 8 Protection 1 | . . . . 3 4 Ballistic Gun 19 | . 28 28 20 3 5 Launcher 1 | . . . . 6 4 Peak Build Rating 58 | 6 8 9 13 58 54 Average Rating 16 | 4 6 7 9 43 43 On Entrance 15 | . 6 8 9 13 54 Avg Prop Armor Cover (%) 7 | . . . . . 7 Naked Turns 12 | . . . . . 12 Heaviest Build 70 | 14 15 16 33 70 70 Greatest Support 100 | 20 20 20 20 100 100 Greatest Overweight (x) 8 | . . 1 1 6 8 Average Overweight (x) . | . . . . . . Largest Inventory Capacity 15 | 8 8 8 15 15 15 Average Capacity 10 | 6 8 8 11 15 14 Most Carried 15 | 6 8 8 9 15 6 Average Carried 7 | 3 7 7 8 8 5 Final Capacity 15 | 8 8 8 15 15 5 Final Carried 9 | 6 8 8 9 6 5 Class Distribution -------------------- 82% | Mutant 17% | Tank Dominant Class ---------------- Mutant | -10/Materials Mutant | -10/Subcaves Mutant | -7/Recycling Tank | -5/Factory Tank | -5/Garrison Resources | -11 -10 -10 -7 -5 -5 ----------- Run | Yrd Mat Sub Rec Fac Gar Matter Collected 748 | 200 180 116 92 . 160 Remotely 92 | . . . 92 . . Salvage Created 669 | . 200 74 68 . 327 Parts 32 | . 8 6 3 . 15 Haulers Intercepted . | . . . . . . Recyclers Shooed . | . . . . . . Parts Field Recycled . | . . . . . . Retrieved Matter . | . . . . . . Parts Self-Destructed 7 | . . 7 . . . Prevented . | . . . . . . Parts Restored . | . . . . . . Kills | -11 -10 -10 -7 -5 -5 ------- Run | Yrd Mat Sub Rec Fac Gar Combat Hostiles Destroyed 18 | . 5 4 1 . 8 Guns 12 | . 5 4 . . 3 Cannons 2 | . . . 1 . 1 AOE 4 | . . . . . 4 Classes Destroyed 5 | . 1 2 1 . 1 Turret 1 | . . 1 . . . Swarmer 6 | . . 4 . . 2 Grunt 9 | . 5 . . . 4 Sentry 1 | . . . 1 . . Programmer 2 | . . . . . 2 Best Kill Streak 4 | . 2 4 1 . 4 Combat Bots Only 4 | . 2 4 1 . 4 Max Kills in Single Turn 2 | . 1 1 1 . 2 Gunslinging . | . . . . . . Exploded 2 | . . . . . 2 Melee . | . . . . . . Uniques/NPCs Destroyed . | . . . . . . Combat | -11 -10 -10 -7 -5 -5 -------- Run | Yrd Mat Sub Rec Fac Gar Hostile Shots Fired 390 | . 26 80 63 3 218 Missed 143 | . 5 35 31 2 70 Hits 247 | . 21 45 32 1 148 Projectile 247 | . 21 45 32 1 148 Critical Strikes 9 | . . . . . 9 Damage Taken 3816 | . 281 372 253 74 2836 Core 1236 | . 54 90 76 . 1016 Absorbed by Shields 148 | . . . . 25 123 Core Remaining (%) 56 | 100 . . 12 . . Volleys Fired 63 | . 20 15 5 . 23 Largest 4 | . 2 2 2 . 4 Hottest 199 | . 40 43 79 . 199 Shots Fired 143 | . 40 30 9 . 64 Gun 120 | . 40 30 5 . 45 Cannon 17 | . . . 4 . 13 Launcher 6 | . . . . . 6 Special . | . . . . . . Kinetic 98 | . 40 30 5 . 23 Thermal 22 | . . . . . 22 Explosive 6 | . . . . . 6 Electromagnetic 17 | . . . 4 . 13 Robot Hit Streak 11 | . 6 7 11 . 6 Robot Miss Streak 8 | . 2 5 4 . 8 Penetration Max . | . . . . . . Secondary Targets . | . . . . . . Shots Hit Robots 89 | . 27 18 8 . 36 Core Hits 46 | . 12 7 4 . 23 Critical Kills 1 | . . 1 . . . Critical Parts Destroyed . | . . . . . . Critical Strikes 2 | . . 1 1 . . Destroy 1 | . . 1 . . . Corrupt 1 | . . . 1 . . Melee Attacks . | . . . . . . Impact . | . . . . . . Slashing . | . . . . . . Piercing . | . . . . . . Sneak Attacks . | . . . . . . Combat Hostiles . | . . . . . . Follow-up Attacks . | . . . . . . Damage Inflicted 1788 | . 340 235 151 . 1062 Guns 1226 | . 340 231 74 . 581 Cannons 126 | . . . 77 . 49 Explosions 432 | . . . . . 432 Melee . | . . . . . . Ramming 4 | . . 4 . . . Kinetic 896 | . 340 231 74 . 251 Thermal 416 | . . . . . 416 Explosive 346 | . . . . . 346 Electromagnetic 126 | . . . 77 . 49 Impact . | . . . . . . Slashing . | . . . . . . Piercing . | . . . . . . Highest Corruption 2 | . . 2 2 . . Average Corruption 2 | . . 2 2 . . Corruption Purged . | . . . . . . Corruption Blocked . | . . . . . . Effects 13 | . . . 13 . . Message Errors 5 | . . . 5 . . Matter Fused 3 | . . . 3 . . Heat Flow Errors 2 | . . . 2 . . Energy Discharges 1 | . . . 1 . . Data Loss (minor) 2 | . . . 2 . . Overload Shots . | . . . . . . Overflow Damage 4 | . . . . . 4 Projectiles . | . . . . . . Explosions 4 | . . . . . 4 Melee . | . . . . . . Knockbacks . | . . . . . . Impact . | . . . . . . Kinetic . | . . . . . . Secondary . | . . . . . . Self-Inflicted Damage 97 | . . 4 . . 93 Shots 3 | . . . . . 3 Rammed . | . . . . . . Targets Rammed . | . . . . . . Kicked . | . . . . . . Crushed . | . . . . . . Highest Temperature 526 | . 2 4 283 . 526 Average Temperature 182 | . 2 4 105 . 218 Received Heat Transfer 856 | . 156 234 84 6 376 Effects 10 | . . . . . 10 Shutdowns 8 | . . . . . 8 Energy Bleed 1 | . . . . . 1 Short Circuit 1 | . . . . . 1 Siege Activations . | . . . . . . Martial Activations . | . . . . . . Shielding Activations . | . . . . . . Robots Disrupted . | . . . . . . Combat Hostiles . | . . . . . . Robots Corrupted . | . . . . . . Combat Hostiles . | . . . . . . Parts Fried 2 | . . . 2 . . Impact Corruptions . | . . . . . . Robots Melted . | . . . . . . Combat Hostiles . | . . . . . . Parts Melted 1 | . . . . . 1 Heat Transferred 481 | . . . . . 481 Parts Sabotaged . | . . . . . . Parts Stolen . | . . . . . . Parts Stripped . | . . . . . . Power Chain Reactions 1 | . . . . . 1 Alert | -11 -10 -10 -7 -5 -5 ------- Run | Yrd Mat Sub Rec Fac Gar Maximum Alert Level 1 | . . . . . 1 Low Security (%) 98 | 100 100 . 100 100 93 Level 1 1 | . . . . . 6 Level 2 . | . . . . . . Level 3 . | . . . . . . Level 4 . | . . . . . . Level 5 . | . . . . . . High Security . | . . . . . . Max Security . | . . . . . . Peak Influence 221 | . 50 . 20 5 221 Initial 5 | . . . . 5 . Average 14 | . 14 . . . 73 Influence Increases 615 | . 135 160 20 4 296 Destroy 0b10 Robot/C 380 | . 100 100 20 . 160 Destroy Leader 50 | . 20 . . . 30 Successful Hack 4 | . . . . 4 . Destroy Structure 91 | . . . . . 91 Lose Combat Pursuer 90 | . 15 60 . . 15 Influence Decreases 514 | . 120 173 8 18 195 Entered New Map 19 | . . 8 2 9 . Time Decay 280 | . 120 145 6 9 . Lost Part 215 | . . 20 . . 195 Squads Dispatched . | . . . . . . Investigation . | . . . . . . Extermination . | . . . . . . Reinforcement . | . . . . . . Assault . | . . . . . . Garrison . | . . . . . . Intercept . | . . . . . . Searches Triggered . | . . . . . . Construction Impeded . | . . . . . . Haulers Reinforced . | . . . . . . Active Scanning Responses . | . . . . . . Cargo Convoy Interrupts . | . . . . . . Stealth | -11 -10 -10 -7 -5 -5 --------- Run | Yrd Mat Sub Rec Fac Gar Distress Signals . | . . . . . . Communications Jammed . | . . . . . . Distress Signals . | . . . . . . Times Spotted 38 | . 6 11 1 2 18 Peak Tracking Total 8 | . 2 6 1 3 8 Tactical Retreats 4 | . 1 2 . . 1 Traps | -11 -10 -10 -7 -5 -5 ------- Run | Yrd Mat Sub Rec Fac Gar Traps Triggered 1 | . . . . 1 . Indirectly . | . . . . . . Trap Hack Attempts . | . . . . . . Triggered . | . . . . . . Disarmed . | . . . . . . Reprogrammed . | . . . . . . Reused . | . . . . . . Traps Extracted . | . . . . . . Installed . | . . . . . . Triggered . | . . . . . . Machines | -11 -10 -10 -7 -5 -5 ---------- Run | Yrd Mat Sub Rec Fac Gar Machines Disabled . | . . . . . . Max in Single Turn . | . . . . . . Garrison Relay 1 | . . . . . 1 Machines Repaired . | . . . . . . Machines Dismantled . | . . . . . . Machines Sabotaged . | . . . . . . Overloaded Fab Kills . | . . . . . . Hacking | -11 -10 -10 -7 -5 -5 --------- Run | Yrd Mat Sub Rec Fac Gar Machines Accessed 4 | . 1 . 1 2 . Terminals 2 | . 1 . 1 . . Fabricators . | . . . . . . Repair Stations . | . . . . . . Recycling Units . | . . . . . . Scanalyzers 1 | . . . . 1 . Garrison Access 1 | . . . . 1 . Total Hacks 7 | . 2 . 1 4 . Successful 5 | . 1 . 1 3 . Failed 2 | . 1 . . 1 . Catastrophic . | . . . . . . Database Lockouts . | . . . . . . Manual . | . . . . . . Terminals 3 | . 2 . 1 . . Fabricators . | . . . . . . Repair Stations . | . . . . . . Recycling Units . | . . . . . . Scanalyzers 2 | . . . . 2 . Garrison Access 2 | . . . . 2 . Terminal Hacks 2 | . 1 . 1 . . Record 1 | . 1 . . . . Maintenance Status 1 | . . . 1 . . Fabricator Hacks . | . . . . . . Repair Station Hacks . | . . . . . . Recycling Unit Hacks . | . . . . . . Scanalyzer 2 | . . . . 2 . Insert Component 1 | . . . . 1 . Analyze 1 | . . . . 1 . Garrison Access Hacks 1 | . . . . 1 . Unlock Access 1 | . . . . 1 . Unauthorized Hacks . | . . . . . . Terminals . | . . . . . . Fabricators . | . . . . . . Repair Stations . | . . . . . . Recycling Units . | . . . . . . Scanalyzers . | . . . . . . Garrison Access . | . . . . . . Data Cores Recovered . | . . . . . . Used . | . . . . . . Hacking Detections 3 | . 1 . . 2 . Full Trace Events . | . . . . . . Feedback Events . | . . . . . . Feedback Blocked . | . . . . . . Robot Schematics Acquired . | . . . . . . Robots Built . | . . . . . . Authchips . | . . . . . . Time . | . . . . . . Total Robot Build Rating . | . . . . . . Part Schematics Acquired 1 | . . . . 1 . Parts Built . | . . . . . . Authchips . | . . . . . . Time . | . . . . . . Total Part Build Rating . | . . . . . . Part Studies Acquired . | . . . . . . Parts Repaired . | . . . . . . Time . | . . . . . . Parts Recycled . | . . . . . . Recycled Matter . | . . . . . . Retrieved Matter . | . . . . . . Retrieved Components . | . . . . . . Parts Scanalyzed 1 | . . . . 1 . Part Schematics Acquired 1 | . . . . 1 . Parts Damaged . | . . . . . . Bothacking | -11 -10 -10 -7 -5 -5 ------------ Run | Yrd Mat Sub Rec Fac Gar Used RIF Installer 1 | . . . . . 1 Robots Hacked . | . . . . . . Non-combat . | . . . . . . Combat . | . . . . . . Robot Hacks Applied . | . . . . . . Relay Couplers Released 5 | . . . . . 5 Machine Destruction 5 | . . . . . 5 Fabnet Peak Effective % . | . . . . . . Robots Rewired . | . . . . . . Allies Hacked . | . . . . . . Hacks Repelled . | . . . . . . Allies | -11 -10 -10 -7 -5 -5 -------- Run | Yrd Mat Sub Rec Fac Gar Total Allies . | . . . . . . Largest Group . | . . . . . . Highest-Rated Group . | . . . . . . Highest-Rated Ally . | . . . . . . Total Orders . | . . . . . . Ally Attacks . | . . . . . . Total Damage . | . . . . . . Kills . | . . . . . . Allies Corrupted . | . . . . . . Allies Melted . | . . . . . . Intel | -11 -10 -10 -7 -5 -5 ------- Run | Yrd Mat Sub Rec Fac Gar Active Infowar (turns) . | . . . . . . Robot Analysis Total . | . . . . . . Derelict Logs Recovered . | . . . . . . Drone Launches . | . . . . . . Drone Recoveries . | . . . . . . Exploration | -11 -10 -10 -7 -5 -5 ------------- Run | Yrd Mat Sub Rec Fac Gar Turns Passed 2607 | 82 395 509 990 289 342 Spaces Moved 1688 | 61 237 338 652 186 214 Core 39 | 8 . . . 1 30 Treads . | . . . . . . Legs 1649 | 53 237 338 652 185 184 Wheels . | . . . . . . Hover . | . . . . . . Flight . | . . . . . . Fastest Speed 50 | 50 120 120 120 120 50 Average Speed 133 | 110 120 135 148 121 117 Slowest Speed 450 | 120 120 190 190 350 450 Overloaded Moves . | . . . . . . Propulsion Burnouts . | . . . . . . Robots Hopped . | . . . . . . Potential Cave-ins 9 | . . . . . 9 Cave-ins Triggered . | . . . . . . Exploration Rate (%) 25 | 4 28 11 80 5 22 Regions Visited 5 Branch Regions 2 Pre-discovered Areas 1 | . . 1 . . . Known Exits Taken 1 | . . . . 1 . Unknown Exits Taken 4 | 1 1 1 1 . . Scrap Searched . | . . . . . . Spaces Dug . | . . . . . . Terrain Destroyed 121 | . . . . . 121 Melee . | . . . . . . Projectile 1 | . . . . . 1 AOE 120 | . . . . . 120 Terrain Rammed 1 | . . 1 . . . Walls Destroyed . | . . . . . . Machines Disabled . | . . . . . . Actions | -11 -10 -10 -7 -5 -5 --------- Run | Yrd Mat Sub Rec Fac Gar Total 1920 | 73 310 357 669 250 261 Wait 83 | . 38 . . 25 20 Move 1683 | 60 236 337 651 185 214 Hop . | . . . . . . Pick Up 21 | 7 8 1 5 . . Fast Attach 18 | 5 1 . 2 7 3 Attach 21 | 1 . 2 1 16 1 Detach 14 | . . . 1 13 . Swap 5 | . . 1 . 4 . Drop 11 | . 7 . 4 . . Fire 63 | . 20 15 5 . 23 Melee . | . . . . . . Ram 1 | . . 1 . . . Kick . | . . . . . . Crush . | . . . . . . Escape Stasis . | . . . . . . Rewire . | . . . . . . Trap . | . . . . . . Miscellaneous . | . . . . . . Route ------- -11/Scrapyard -10/Materials (discovered 2 exits: [*Mat] / [*Sub]) -10/Subcaves -7/Recycling -5/Factory -5/Garrison History --------- Turn | Location | Event 10 | -11/Scrapyard | Discovered new exit (range 15) 83 | -11/Scrapyard | Entered Materials 289 | -10/Materials | Discovered new exit (range 15) 309 | -10/Materials | Build established: Mutant 468 | -10/Materials | Discovered new exit (range 7) 478 | -10/Materials | Entered Subcaves 479 | -10/Subcaves | Approached by a straggling Scientist 614 | -10/Subcaves | Learned location of Zion (-6) 614 | -10/Subcaves | Met a Zionite searching for "candidates" 678 | -10/Subcaves | Discovered new exit (range 12) 922 | -10/Subcaves | Core integrity fell below 50% 987 | -10/Subcaves | Entered Recycling 988 | -7/Recycling | Met a Zionite searching for Scraptown 1923 | -7/Recycling | Discovered new exit (range 16) 1956 | -7/Recycling | Core integrity fell below 20% 1977 | -7/Recycling | Entered Factory 1977 | -5/Factory | Evolved 10 slots: Power x2, Propulsion x3, Utility x2, Weapon x3 2227 | -5/Factory | Identified exit to Garrison 2266 | -5/Factory | Entered Garrison 2296 | -5/Garrison | Triggered checkpoint 2345 | -5/Garrison | Installed Relay Interface Framework 2378 | -5/Garrison | Triggered checkpoint 2391 | -5/Garrison | Build established: Tank 2466 | -5/Garrison | Lost 3 parts (1p1u1w) 2589 | -5/Garrison | Core integrity fell below 50% 2597 | -5/Garrison | Core integrity fell below 20% 2600 | -5/Garrison | Triggered checkpoint 2608 | -5/Garrison | Destroyed by S-27 Virus with Autogun Last Messages --------------- Penetrated by Slug. The unstable cave ceiling collapses. Penetrated by Slug. Slug penetrates Earth. Penetrated by Slug. Sml. Storage Unit destroyed. The unstable cave ceiling collapses. Penetrated by Slug. Slug penetrates Wall. Critical hit (Burn: +37). Slug penetrates S-27 Virus. S-27 Virus destroyed. Lrg. Storage Unit destroyed. Critical hit (Burn: +37). Penetrated by Slug. Beams of light sweep through the air. An alarm sounds. Penetrated by Slug. Slug penetrates Reinforced Barrier. Penetrated by Slug. Map ----- +----------------------------------------------------+ | ?????????????????????????????????????????????????? | | ?????????????????????????????????????????????????? | | ?????????????????????????????????????????????????? | | ?????????????????????????????????????????????????? | | ?????????????????????????????????????????????????? | | ???????????????????????? ???????????????????????? | | ???????????????????????# #??????????????????????? | | ??????????????????? ??? #?????????????????????? | | ?????????????????? ?? ?????????????????????? | | ?????????????????? ?? ?????????????????????? | | ?????????????? ??# ?# #?????????????????????? | | ?????????????? ## ## ##????????????????????? | | ????????????? ????????????????????? | | ????????????? ?????????????????????? | | ?????????????? ?#####???????????????? | | ???????????????? ?# ##??????????????? | | ????????????# ???# ?#^^ ### #??????????????? | | ???????????## ## ## = # ####???????????? | | ??????????? % %% #???????????? | | ??????????? [= #???????????? | | ????????????# [ # #???????????? | | ?????????????????# ## Y# %*# # #???????????? | | ???????????????????????# s# = # #???????????? | | ???????????????????????#sY# # #???????????? | | ???????????????????????#s # # ## #???????????? | | ???????????????????????# @# # # ## #???????????? | | ???????????????????????# ## ###### #???????????? | | ???????????????????????# ## #????# #???????????? | | ???????????????????????# ####????# #???????????? | | ???????????????????????# Y #?????# #???????????? | | ???????????????????????# #?????# #???????????? | | ???????????????????????# #?????# #???????????? | | ?????????????????????### ###?????# #???????????? | | ?????????????????????#!# #??###### #???????????? | | ?????????????????????#"!! #?## #???????????? | | ?????????????????????#"!! ### #####???????? | | ?????????????????????#" ## # #???##### | | ?????????????????????#"# ## #???# # | | ?????????????????????####### ###### # | | ???????????????????????????# | | ???????????????????????????# | | ???????????????????????????###### ######### | | ????????????????????????????????## # #??????? | | ?????????????????????????????????# ## ####??????? | | ?????????????????????????????????##?####?????????? | | ?????????????????????????????????????????????????? | | ?????????????????????????????????????????????????? | | ?????????????????????????????????????????????????? | | ?????????????????????????????????????????????????? | | ?????????????????????????????????????????????????? | +----------------------------------------------------+ Best States ------------- Heat Dissipation 40 Energy Generation 26 Energy Capacity 590 Matter Stores 300 Matter Capacity 300 Sight Range 16 Terrain Scan Density 10 Armor Coverage 150 Evasion (%) 55 Item Schematics ----------------- Aluminum Leg | -5/Factory | Scanalyzed Robot Schematics ------------------ None Fabricated ------------ Nothing Repaired ---------- Nothing Studied --------- None Alien Tech Used ----------------- None Achievements -------------- Join The Dark Side Well Done Challenges ------------ None Game ------ Seed HypertargetingZioniteWell Manual? 0 Play Time 00:52:41 Cumulative 4.3 hours Start 2025.11.25 @ 21:12:13 End 2025.11.25 @ 22:09:48 Sessions 4 Manual Loads 0 Difficulty Rogue Special Mode None Game No. 5 Rogue 5 Adventurer 0 Explorer 0 Win Type - Total 0 Types 0/0/0/0/0/0/0/0/0/0 Lore% 2 Gallery% 6 Achievement% 6 Wizard Run 0 Options --------- Layout 1 ASCII 0 Keyboard 1 Movement Vi Keybinds 0 Fullscreen 1 Font 24/Smallcaps Map View 50x35 Zoom Use 0% Tactical HUD 0 Map Filters NONE Filters NONE Steam 1 RUN: b26253b8-d836-4d4c-9189-fdf3893432f8